Workbook

Sheet Data
A1: Substrat | B1: Y1 | C1: Y2 | D1: Y3 | E1: Y4 | F1: Y5 | H1: Inhibitor
A2: 2 | B2: 64.752 | C2: 42.921 | D2: 22.568 | E2: 12.166 | F2: 2.866 | H2: 1
A3: 5 | B3: 122.398 | C3: 68.881 | D3: 32.616 | E3: 24.493 | F3: 15.355 | H3: 2
A4: 10 | B4: 176.318 | C4: 98.882 | D4: 69.865 | E4: 41.498 | F4: 28.14 | H4: 5
A5: 20 | B5: 299.256 | C5: 180.484 | D5: 114.811 | E5: 62.992 | F5: 46.355 | H5: 10
A6: 50 | B6: 389.069 | C6: 324.807 | D6: 191.351 | E6: 131.82 | F6: 79.724 | H6: 15
A7: 100 | B7: 478.174 | C7: 409.209 | D7: 298.686 | E7: 185.296 | F7: 134.899

Sheet Nonlinear regression
B1: XLSTAT 2020.4.1.12345 - Nonlinear regression - Start time: 30/09/2020 at 16:29:43 / End time: 30/09/2020 at 16:29:44 / Microsoft Excel 16.013127
B2: Y / Dependent variables: Workbook = TutoCompNLI.xlsm / Sheet = Data / Range = 'Data'!$B:$F / 6 rows and 5 columns
B3: X / Quantitative: Workbook = TutoCompNLI.xlsm / Sheet = Data / Range = 'Data'!$A:$A / 6 rows and 1 column
B4: Inhibitor concentration: Workbook = TutoCompNLI.xlsm / Sheet = Data / Range = 'Data'!$H$2:$H$6 / 5 rows and 1 column
B5: Stop conditions: Iterations: 200 Convergence: 0,00001
B6: Enzyme kinetics : Competitive inhibition = pr1*X1/(pr2*(1+[I]/pr3)+X1)
B11: Summary statistics:
B13: Variable | C13: Observations | D13: Obs. with missing data | E13: Obs. without missing data | F13: Minimum | G13: Maximum | H13: Mean | I13: Std. deviation
B14: Y | C14: 30 | D14: 0 | E14: 30 | F14: 2.866 | G14: 478.174 | H14: 138.3550667 | I14: 131.1513828
B15: Substrat | C15: 30 | D15: 0 | E15: 30 | F15: 2 | G15: 100 | H15: 31.16666667 | I15: 35.23525207
B18: Nonlinear regression of variable Y
B20: Goodness of fit statistics:
B22: Statistic | C22: Full
B23: Observations | C23: 30
B24: DF | C24: 27
B25: SSE | C25: 3464.289223
B26: MSE | C26: 128.3070083
B27: RMSE | C27: 11.32726835
B28: AIC | C28: 150.4719614
B29: AICC | C29: 151.4719614
B30: Iterations | C30: 14
B33: Model parameters:
B35: Parameters | C35: Value(1) | D35: Standard error(1) | E35: Lower bound (95%) | F35: Upper bound (95%) | G35: Value(2) | H35: Standard error(2) | I35: Lower bound (95%) | J35: Upper bound (95%) | K35: Value(5) | L35: Standard error(5) | M35: Lower bound (95%) | N35: Upper bound (95%) | O35: Value(10) | P35: Standard error(10) | Q35: Lower bound (95%) | R35: Upper bound (95%) | S35: Value(15) | T35: Standard error(15) | U35: Lower bound (95%) | V35: Upper bound (95%)
B36: pr1 | C36: 562.867406 | D36: 14.83707477 | E36: 532.4242432 | F36: 593.3105687 | G36: 562.867406 | H36: 14.83707477 | I36: 532.4242432 | J36: 593.3105687 | K36: 562.867406 | L36: 14.83707477 | M36: 532.4242432 | N36: 593.3105687 | O36: 562.867406 | P36: 14.83707477 | Q36: 532.4242432 | R36: 593.3105687 | S36: 562.867406 | T36: 14.83707477 | U36: 532.4242432 | V36: 593.3105687
B37: pr2 | C37: 1.252774038 | D37: 1.425797664 | E37: -1.672721119 | F37: 4.178269195 | G37: 1.252774038 | H37: 1.425797664 | I37: -1.672721119 | J37: 4.178269195 | K37: 1.252774038 | L37: 1.425797664 | M37: -1.672721119 | N37: 4.178269195 | O37: 1.252774038 | P37: 1.425797664 | Q37: -1.672721119 | R37: 4.178269195 | S37: 1.252774038 | T37: 1.425797664 | U37: -1.672721119 | V37: 4.178269195
B38: pr3 | C38: 0.06822907485 | D38: 0.07869759251 | E38: -0.09324504703 | F38: 0.2297031967 | G38: 0.06822907485 | H38: 0.07869759251 | I38: -0.09324504703 | J38: 0.2297031967 | K38: 0.06822907485 | L38: 0.07869759251 | M38: -0.09324504703 | N38: 0.2297031967 | O38: 0.06822907485 | P38: 0.07869759251 | Q38: -0.09324504703 | R38: 0.2297031967 | S38: 0.06822907485 | T38: 0.07869759251 | U38: -0.09324504703 | V38: 0.2297031967
B41: Equation of the model:
B43: Y(1) = 562.867*Substrat/(1.25277*(1+[I]/0.0682291)+Substrat)
B45: Y(2) = 562.867*Substrat/(1.25277*(1+[I]/0.0682291)+Substrat)
B47: Y(5) = 562.867*Substrat/(1.25277*(1+[I]/0.0682291)+Substrat)
B49: Y(10) = 562.867*Substrat/(1.25277*(1+[I]/0.0682291)+Substrat)
B51: Y(15) = 562.867*Substrat/(1.25277*(1+[I]/0.0682291)+Substrat)
B54: Predictions and residuals:
B56: Observations | C56: Substrat | D56: Y | E56: Pred(Y) | F56: Residuals
B57: Obs1(1) | C57: 2 | D57: 64.752 | E57: 52.08343285 | F57: 12.66856715
B58: Obs2(1) | C58: 5 | D58: 122.398 | E58: 114.3385617 | F58: 8.059438253
B59: Obs3(1) | C59: 10 | D59: 176.318 | E59: 190.0675798 | F59: -13.74957979
B60: Obs4(1) | C60: 20 | D60: 299.256 | E60: 284.1755201 | F60: 15.08047988
B61: Obs5(1) | C61: 50 | D61: 389.069 | E61: 404.2770589 | F61: -15.20805886
B62: Obs6(1) | C62: 100 | D62: 478.174 | E62: 470.569574 | F62: 7.604425989
B63: Obs7(2) | C63: 2 | D63: 42.921 | E63: 28.1607172 | F63: 14.7602828
B64: Obs8(2) | C64: 5 | D64: 68.881 | E64: 65.48722385 | F64: 3.393776146
B65: Obs9(2) | C65: 10 | D65: 98.882 | E65: 117.324269 | F65: -18.44226902
B66: Obs10(2) | C66: 20 | D66: 180.484 | E66: 194.1746992 | F66: -13.69069925
B67: Obs11(2) | C67: 50 | D67: 324.807 | E67: 319.9005978 | F67: 4.906402234
B68: Obs12(2) | C68: 100 | D68: 409.209 | E68: 407.9477708 | F68: 1.261229192
B69: Obs13(5) | C69: 2 | D69: 22.568 | E69: 11.84245551 | F69: 10.72554449
B70: Obs14(5) | C70: 5 | D70: 32.616 | E70: 28.70037592 | F70: 3.915624085
B71: Obs15(5) | C71: 10 | D71: 69.865 | E71: 54.61590924 | F71: 15.24909076
B72: Obs16(5) | C72: 20 | D72: 114.811 | E72: 99.57035081 | F72: 15.24064919
B73: Obs17(5) | C73: 50 | D73: 191.351 | E73: 196.7252897 | F73: -5.374289721
B74: Obs18(5) | C74: 100 | D74: 298.686 | E74: 291.5516543 | F74: 7.134345695
B75: Obs19(10) | C75: 2 | D75: 12.166 | E75: 6.024298651 | F75: 6.141701349
B76: Obs20(10) | C76: 5 | D76: 24.493 | E76: 14.82277716 | F76: 9.670222836
B77: Obs21(10) | C77: 10 | D77: 41.498 | E77: 28.88488804 | F77: 12.61311196
B78: Obs22(10) | C78: 20 | D78: 62.992 | E78: 54.94989092 | F78: 8.042109077
B79: Obs23(10) | C79: 50 | D79: 131.82 | E79: 119.8275004 | F79: 11.99249964
B80: Obs24(10) | C80: 100 | D80: 185.296 | E80: 197.5904424 | F80: -12.29444243
B81: Obs25(15) | C81: 2 | D81: 2.866 | E81: 4.039638449 | F81: -1.173638449
B82: Obs26(15) | C82: 5 | D82: 15.355 | E82: 9.991533887 | F82: 5.363466113
B83: Obs27(15) | C83: 10 | D83: 28.14 | E83: 19.63453259 | F83: 8.505467415
B84: Obs28(15) | C84: 20 | D84: 46.355 | E84: 37.94541337 | F84: 8.40958663
B85: Obs29(15) | C85: 50 | D85: 79.724 | E85: 86.15172304 | F85: -6.427723037
B86: Obs30(15) | C86: 100 | D86: 134.899 | E86: 149.4316414 | F86: -14.53264138

Sheet XLSTAT_20200930_162943_1_HID (hidden)
A1: 1 | C1: =0+(A1-1)*0.5025125628 -> 0 | D1: =562.867405963051*C1/(1.25277403798863*(1+1/0.0682290748499779)+C1) -> 0 | E1: 1 | G1: =0+(E1-1)*0.5025125628 -> 0 | H1: =562.867405963051*G1/(1.25277403798863*(1+2/0.0682290748499779)+G1) -> 0 | I1: 1 | K1: =0+(I1-1)*0.5025125628 -> 0 | L1: =562.867405963051*K1/(1.25277403798863*(1+5/0.0682290748499779)+K1) -> 0 | M1: 1 | O1: =0+(M1-1)*0.5025125628 -> 0 | P1: =562.867405963051*O1/(1.25277403798863*(1+10/0.0682290748499779)+O1) -> 0 | Q1: 1 | S1: =0+(Q1-1)*0.5025125628 -> 0 | T1: =562.867405963051*S1/(1.25277403798863*(1+15/0.0682290748499779)+S1) -> 0
A2: 2 | C2: 0.5025125628 | D2: 14.06043908 | E2: 2 | G2: 0.5025125628 | H2: 7.350924643 | I2: 2 | K2: 0.5025125628 | L2: 3.023115077 | M2: 2 | O2: 0.5025125628 | P2: 1.525870762 | Q2: 2 | S2: 0.5025125628 | T2: 1.020468176
A3: 3 | C3: 1.005025126 | D3: 27.43553787 | E3: 3 | G3: 1.005025126 | H3: 14.51232156 | I3: 3 | K3: 1.005025126 | L3: 6.013929826 | M3: 3 | O3: 1.005025126 | P3: 3.043490959 | Q3: 3 | S3: 1.005025126 | T3: 2.037242869
A4: 4 | C4: 1.507537688 | D4: 40.174212 | E4: 4 | G4: 1.507537688 | H4: 21.49142729 | I4: 4 | K4: 1.507537688 | L4: 8.972959163 | M4: 4 | O4: 1.507537688 | P4: 4.552927329 | Q4: 4 | S4: 1.507537688 | T4: 3.050344095
A5: 5 | C5: 2.010050251 | D5: 52.32083016 | E5: 5 | G5: 2.010050251 | H5: 28.29511463 | I5: 5 | K5: 2.010050251 | L5: 11.90070712 | M5: 5 | O5: 2.010050251 | P5: 6.054245891 | Q5: 5 | S5: 2.010050251 | T5: 4.059791724
A6: 6 | C6: 2.512562814 | D6: 63.91573048 | E6: 6 | G6: 2.512562814 | H6: 34.92991515 | I6: 6 | K6: 2.512562814 | L6: 14.79766712 | M6: 6 | O6: 2.512562814 | P6: 7.547511957 | Q6: 6 | S6: 2.512562814 | T6: 5.065605487
A7: 7 | C7: 3.015075377 | D7: 74.99566802 | E7: 7 | G7: 3.015075377 | H7: 41.40204013 | I7: 7 | K7: 3.015075377 | L7: 17.66432227 | M7: 7 | O7: 3.015075377 | P7: 9.032790138 | Q7: 7 | S7: 3.015075377 | T7: 6.067804969
A8: 8 | C8: 3.51758794 | D8: 85.59420397 | E8: 8 | G8: 3.51758794 | H8: 47.71739995 | I8: 8 | K8: 3.51758794 | L8: 20.50114562 | M8: 8 | O8: 3.51758794 | P8: 10.51014436 | Q8: 8 | S8: 3.51758794 | T8: 7.066409617
A9: 9 | C9: 4.020100502 | D9: 95.74204518 | E9: 9 | G9: 4.020100502 | H9: 53.88162213 | I9: 9 | K9: 4.020100502 | L9: 23.30860043 | M9: 9 | O9: 4.020100502 | P9: 11.97963786 | Q9: 9 | S9: 4.020100502 | T9: 8.061438738
A10: 10 | C10: 4.522613065 | D10: 105.4673413 | E10: 10 | G10: 4.522613065 | H10: 59.90006798 | I10: 10 | K10: 4.522613065 | L10: 26.08714041 | M10: 10 | O10: 4.522613065 | P10: 13.44133321 | Q10: 10 | S10: 4.522613065 | T10: 9.052911502
A11: 11 | C11: 5.025125628 | D11: 114.7959456 | E11: 11 | G11: 5.025125628 | H11: 65.77784823 | I11: 11 | K11: 5.025125628 | L11: 28.83720998 | M11: 11 | O11: 5.025125628 | P11: 14.89529233 | Q11: 11 | S11: 5.025125628 | T11: 10.04084694
A12: 12 | C12: 5.527638191 | D12: 123.7516443 | E12: 12 | G12: 5.527638191 | H12: 71.51983745 | I12: 12 | K12: 5.527638191 | L12: 31.55924448 | M12: 12 | O12: 5.527638191 | P12: 16.34157647 | Q12: 12 | S12: 5.527638191 | T12: 11.02526395
A13: 13 | C13: 6.030150754 | D13: 132.3563594 | E13: 13 | G13: 6.030150754 | H13: 77.13068757 | I13: 13 | K13: 6.030150754 | L13: 34.25367045 | M13: 13 | O13: 6.030150754 | P13: 17.78024623 | Q13: 13 | S13: 6.030150754 | T13: 12.00618129
A14: 14 | C14: 6.532663316 | D14: 140.6303273 | E14: 14 | G14: 6.532663316 | H14: 82.61484041 | I14: 14 | K14: 6.532663316 | L14: 36.9209058 | M14: 14 | O14: 6.532663316 | P14: 19.2113616 | Q14: 14 | S14: 6.532663316 | T14: 12.9836176
A15: 15 | C15: 7.035175879 | D15: 148.5922584 | E15: 15 | G15: 7.035175879 | H15: 87.97653944 | I15: 15 | K15: 7.035175879 | L15: 39.56136005 | M15: 15 | O15: 7.035175879 | P15: 20.63498192 | Q15: 15 | S15: 7.035175879 | T15: 13.95759136
A16: 16 | C16: 7.537688442 | D16: 156.2594778 | E16: 16 | G16: 7.537688442 | H16: 93.21984073 | I16: 16 | K16: 7.537688442 | L16: 42.17543453 | M16: 16 | O16: 7.537688442 | P16: 22.05116591 | Q16: 16 | S16: 7.537688442 | T16: 14.92812095
A17: 17 | C17: 8.040201005 | D17: 163.6480513 | E17: 17 | G17: 8.040201005 | H17: 98.34862317 | I17: 17 | K17: 8.040201005 | L17: 44.76352262 | M17: 17 | O17: 8.040201005 | P17: 23.45997169 | Q17: 17 | S17: 8.040201005 | T17: 15.89522461
A18: 18 | C18: 8.542713568 | D18: 170.7728978 | E18: 18 | G18: 8.542713568 | H18: 103.366598 | I18: 18 | K18: 8.542713568 | L18: 47.32600989 | M18: 18 | O18: 8.542713568 | P18: 24.86145677 | Q18: 18 | S18: 8.542713568 | T18: 16.85892043
A19: 19 | C19: 9.04522613 | D19: 177.64789 | E19: 19 | G19: 9.04522613 | H19: 108.2773179 | I19: 19 | K19: 9.04522613 | L19: 49.86327431 | M19: 19 | O19: 9.04522613 | P19: 26.25567806 | Q19: 19 | S19: 9.04522613 | T19: 17.81922641
A20: 20 | C20: 9.547738693 | D20: 184.2859441 | E20: 20 | G20: 9.547738693 | H20: 113.0841852 | I20: 20 | K20: 9.547738693 | L20: 52.37568649 | M20: 20 | O20: 9.547738693 | P20: 27.64269189 | Q20: 20 | S20: 9.547738693 | T20: 18.7761604
A21: 21 | C21: 10.05025126 | D21: 190.6991015 | E21: 21 | G21: 10.05025126 | H21: 117.7904599 | I21: 21 | K21: 10.05025126 | L21: 54.86360977 | M21: 21 | O21: 10.05025126 | P21: 29.022554 | Q21: 21 | S21: 10.05025126 | T21: 19.72974012
A22: 22 | C22: 10.55276382 | D22: 196.8986008 | E22: 22 | G22: 10.55276382 | H22: 122.3992669 | I22: 22 | K22: 10.55276382 | L22: 57.32740047 | M22: 22 | O22: 10.55276382 | P22: 30.39531957 | Q22: 22 | S22: 10.55276382 | T22: 20.67998318
A23: 23 | C23: 11.05527638 | D23: 202.8949444 | E23: 23 | G23: 11.05527638 | H23: 126.913603 | I23: 23 | K23: 11.05527638 | L23: 59.76740802 | M23: 23 | O23: 11.05527638 | P23: 31.7610432 | Q23: 23 | S23: 11.05527638 | T23: 21.62690707
A24: 24 | C24: 11.55778894 | D24: 208.6979574 | E24: 24 | G24: 11.55778894 | H24: 131.3363435 | I24: 24 | K24: 11.55778894 | L24: 62.18397512 | M24: 24 | O24: 11.55778894 | P24: 33.11977893 | Q24: 24 | S24: 11.55778894 | T24: 22.57052913
A25: 25 | C25: 12.06030151 | D25: 214.3168412 | E25: 25 | G25: 12.06030151 | H25: 135.670248 | I25: 25 | K25: 12.06030151 | L25: 64.57743796 | M25: 25 | O25: 12.06030151 | P25: 34.47158027 | Q25: 25 | S25: 12.06030151 | T25: 23.51086663
A26: 26 | C26: 12.56281407 | D26: 219.7602226 | E26: 26 | G26: 12.56281407 | H26: 139.9179665 | I26: 26 | K26: 12.56281407 | L26: 66.94812628 | M26: 26 | O26: 12.56281407 | P26: 35.81650015 | Q26: 26 | S26: 12.56281407 | T26: 24.44793666
A27: 27 | C27: 13.06532663 | D27: 225.0361978 | E27: 27 | G27: 13.06532663 | H27: 144.0820446 | I27: 27 | K27: 13.06532663 | L27: 69.29636362 | M27: 27 | O27: 13.06532663 | P27: 37.154591 | Q27: 27 | S27: 13.06532663 | T27: 25.38175624
A28: 28 | C28: 13.5678392 | D28: 230.1523724 | E28: 28 | G28: 13.5678392 | H28: 148.1649287 | I28: 28 | K28: 13.5678392 | L28: 71.62246739 | M28: 28 | O28: 13.5678392 | P28: 38.48590469 | Q28: 28 | S28: 13.5678392 | T28: 26.31234225
A29: 29 | C29: 14.07035176 | D29: 235.1158983 | E29: 29 | G29: 14.07035176 | H29: 152.1689704 | I29: 29 | K29: 14.07035176 | L29: 73.92674906 | M29: 29 | O29: 14.07035176 | P29: 39.81049259 | Q29: 29 | S29: 14.07035176 | T29: 27.23971145
A30: 30 | C30: 14.57286432 | D30: 239.9335067 | E30: 30 | G30: 14.57286432 | H30: 156.0964318 | I30: 30 | K30: 14.57286432 | L30: 76.20951428 | M30: 30 | O30: 14.57286432 | P30: 41.12840552 | Q30: 30 | S30: 14.57286432 | T30: 28.1638805
A31: 31 | C31: 15.07537688 | D31: 244.6115391 | E31: 31 | G31: 15.07537688 | H31: 159.949489 | I31: 31 | K31: 15.07537688 | L31: 78.47106302 | M31: 31 | O31: 15.07537688 | P31: 42.43969383 | Q31: 31 | S31: 15.07537688 | T31: 29.08486593
A32: 32 | C32: 15.57788945 | D32: 249.1559744 | E32: 32 | G32: 15.57788945 | H32: 163.7302366 | I32: 32 | K32: 15.57788945 | L32: 80.71168968 | M32: 32 | O32: 15.57788945 | P32: 43.74440733 | Q32: 32 | S32: 15.57788945 | T32: 30.00268416
A33: 33 | C33: =0+(A33-1)*0.5025125628 -> 16.08040201 | D33: =562.867405963051*C33/(1.25277403798863*(1+1/0.0682290748499779)+C33) -> 253.5724552 | E33: 33 | G33: =0+(E33-1)*0.5025125628 -> 16.08040201 | H33: =562.867405963051*G33/(1.25277403798863*(1+2/0.0682290748499779)+G33) -> 167.440691 | I33: 33 | K33: =0+(I33-1)*0.5025125628 -> 16.08040201 | L33: =562.867405963051*K33/(1.25277403798863*(1+5/0.0682290748499779)+K33) -> 82.93168328 | M33: 33 | O33: =0+(M33-1)*0.5025125628 -> 16.08040201 | P33: =562.867405963051*O33/(1.25277403798863*(1+10/0.0682290748499779)+O33) -> 45.04259535 | Q33: 33 | S33: =0+(Q33-1)*0.5025125628 -> 16.08040201 | T33: =562.867405963051*S33/(1.25277403798863*(1+15/0.0682290748499779)+S33) -> 30.9173515
A34: 34 | C34: 16.58291457 | D34: 257.8663104 | E34: 34 | G34: 16.58291457 | H34: 171.0827946 | I34: 34 | K34: 16.58291457 | L34: 85.1313275 | M34: 34 | O34: 16.58291457 | P34: 46.33430673 | Q34: 34 | S34: 16.58291457 | T34: 31.82888415
A35: 35 | C35: 17.08542714 | D35: 262.0425773 | E35: 35 | G35: 17.08542714 | H35: 174.6584189 | I35: 35 | K35: 17.08542714 | L35: 87.31090086 | M35: 35 | O35: 17.08542714 | P35: 47.6195898 | Q35: 35 | S35: 17.08542714 | T35: 32.7372982
A36: 36 | C36: 17.5879397 | D36: 266.1060209 | E36: 36 | G36: 17.5879397 | H36: 178.1693676 | I36: 36 | K36: 17.5879397 | L36: 89.47067683 | M36: 36 | O36: 17.5879397 | P36: 48.89849244 | Q36: 36 | S36: 17.5879397 | T36: 33.64260963
A37: 37 | C37: 18.09045226 | D37: 270.0611521 | E37: 37 | G37: 18.09045226 | H37: 181.6173797 | I37: 37 | K37: 18.09045226 | L37: 91.61092392 | M37: 37 | O37: 18.09045226 | P37: 50.17106205 | Q37: 37 | S37: 18.09045226 | T37: 34.5448343
A38: 38 | C38: 18.59296482 | D38: 273.9122448 | E38: 38 | G38: 18.59296482 | H38: 185.0041324 | I38: 38 | K38: 18.59296482 | L38: 93.7319058 | M38: 38 | O38: 18.59296482 | P38: 51.43734554 | Q38: 38 | S38: 18.59296482 | T38: 35.44398797
A39: 39 | C39: 19.09547739 | D39: 277.6633507 | E39: 39 | G39: 19.09547739 | H39: 188.3312439 | I39: 39 | K39: 19.09547739 | L39: 95.83388144 | M39: 39 | O39: 19.09547739 | P39: 52.69738937 | Q39: 39 | S39: 19.09547739 | T39: 36.34008629
A40: 40 | C40: 19.59798995 | D40: 281.3183137 | E40: 40 | G40: 19.59798995 | H40: 191.6002759 | I40: 40 | K40: 19.59798995 | L40: 97.91710517 | M40: 40 | O40: 19.59798995 | P40: 53.95123957 | Q40: 40 | S40: 19.59798995 | T40: 37.23314482
A41: 41 | C41: 20.10050251 | D41: 284.8807836 | E41: 41 | G41: 20.10050251 | H41: 194.8127361 | I41: 41 | K41: 20.10050251 | L41: 99.98182681 | M41: 41 | O41: 20.10050251 | P41: 55.19894167 | Q41: 41 | S41: 20.10050251 | T41: 38.12317899
A42: 42 | C42: 20.60301507 | D42: 288.3542273 | E42: 42 | G42: 20.60301507 | H42: 197.9700804 | I42: 42 | K42: 20.60301507 | L42: 102.0282918 | M42: 42 | O42: 20.60301507 | P42: 56.44054078 | Q42: 42 | S42: 20.60301507 | T42: 39.01020415
A43: 43 | C43: 21.10552764 | D43: 291.7419408 | E43: 43 | G43: 21.10552764 | H43: 201.073715 | I43: 43 | K43: 21.10552764 | L43: 104.0567411 | M43: 43 | O43: 21.10552764 | P43: 57.67608159 | Q43: 43 | S43: 21.10552764 | T43: 39.89423551
A44: 44 | C44: 21.6080402 | D44: 295.0470593 | E44: 44 | G44: 21.6080402 | H44: 204.124999 | I44: 44 | K44: 21.6080402 | L44: 106.0674116 | M44: 44 | O44: 21.6080402 | P44: 58.90560831 | Q44: 44 | S44: 21.6080402 | T44: 40.77528823
A45: 45 | C45: 22.11055276 | D45: 298.2725672 | E45: 45 | G45: 22.11055276 | H45: 207.1252458 | I45: 45 | K45: 22.11055276 | L45: 108.0605361 | M45: 45 | O45: 22.11055276 | P45: 60.12916476 | Q45: 45 | S45: 22.11055276 | T45: 41.65337731
A46: 46 | C46: 22.61306533 | D46: 301.4213065 | E46: 46 | G46: 22.61306533 | H46: 210.0757252 | I46: 46 | K46: 22.61306533 | L46: 110.0363433 | M46: 46 | O46: 22.61306533 | P46: 61.34679432 | Q46: 46 | S46: 22.61306533 | T46: 42.5285177
A47: 47 | C47: 23.11557789 | D47: 304.4959856 | E47: 47 | G47: 23.11557789 | H47: 212.9776655 | I47: 47 | K47: 23.11557789 | L47: 111.9950578 | M47: 47 | O47: 23.11557789 | P47: 62.55853993 | Q47: 47 | S47: 23.11557789 | T47: 43.40072422
A48: 48 | C48: 23.61809045 | D48: 307.4991872 | E48: 48 | G48: 23.61809045 | H48: 215.8322545 | I48: 48 | K48: 23.61809045 | L48: 113.9369005 | M48: 48 | O48: 23.61809045 | P48: 63.76444417 | Q48: 48 | S48: 23.61809045 | T48: 44.2700116
A49: 49 | C49: 24.12060301 | D49: 310.4333751 | E49: 49 | G49: 24.12060301 | H49: 218.640642 | I49: 49 | K49: 24.12060301 | L49: 115.8620884 | M49: 49 | O49: 24.12060301 | P49: 64.96454915 | Q49: 49 | S49: 24.12060301 | T49: 45.13639447
A50: 50 | C50: 24.62311558 | D50: 313.3009011 | E50: 50 | G50: 24.62311558 | H50: 221.4039405 | I50: 50 | K50: 24.62311558 | L50: 117.7708349 | M50: 50 | O50: 24.62311558 | P50: 66.15889661 | Q50: 50 | S50: 24.62311558 | T50: 45.99988736
A51: 51 | C51: 25.12562814 | D51: 316.1040115 | E51: 51 | G51: 25.12562814 | H51: 224.1232272 | I51: 51 | K51: 25.12562814 | L51: 119.6633498 | M51: 51 | O51: 25.12562814 | P51: 67.34752788 | Q51: 51 | S51: 25.12562814 | T51: 46.86050472
A52: 52 | C52: 25.6281407 | D52: 318.8448526 | E52: 52 | G52: 25.6281407 | H52: 226.7995454 | I52: 52 | K52: 25.6281407 | L52: 121.5398392 | M52: 52 | O52: 25.6281407 | P52: 68.53048392 | Q52: 52 | S52: 25.6281407 | T52: 47.71826087
A53: 53 | C53: 26.13065327 | D53: 321.5254767 | E53: 53 | G53: 26.13065327 | H53: 229.4339055 | I53: 53 | K53: 26.13065327 | L53: 123.4005057 | M53: 53 | O53: 26.13065327 | P53: 69.70780525 | Q53: 53 | S53: 26.13065327 | T53: 48.57317006
A54: 54 | C54: 26.63316583 | D54: 324.1478466 | E54: 54 | G54: 26.63316583 | H54: 232.0272864 | I54: 54 | K54: 26.63316583 | L54: 125.2455488 | M54: 54 | O54: 26.63316583 | P54: 70.87953205 | Q54: 54 | S54: 26.63316583 | T54: 49.42524644
A55: 55 | C55: 27.13567839 | D55: 326.7138409 | E55: 55 | G55: 27.13567839 | H55: 234.5806372 | I55: 55 | K55: 27.13567839 | L55: 127.0751642 | M55: 55 | O55: 27.13567839 | P55: 72.0457041 | Q55: 55 | S55: 27.13567839 | T55: 50.27450408
A56: 56 | C56: 27.63819095 | D56: 329.225258 | E56: 56 | G56: 27.63819095 | H56: 237.0948773 | I56: 56 | K56: 27.63819095 | L56: 128.8895448 | M56: 56 | O56: 27.63819095 | P56: 73.20636081 | Q56: 56 | S56: 27.63819095 | T56: 51.12095693
A57: 57 | C57: 28.14070352 | D57: 331.6838211 | E57: 57 | G57: 28.14070352 | H57: 239.5708987 | I57: 57 | K57: 28.14070352 | L57: 130.6888801 | M57: 57 | O57: 28.14070352 | P57: 74.3615412 | Q57: 57 | S57: 28.14070352 | T57: 51.96461887
A58: 58 | C58: 28.64321608 | D58: 334.0911811 | E58: 58 | G58: 28.64321608 | H58: 242.0095662 | I58: 58 | K58: 28.64321608 | L58: 132.4733563 | M58: 58 | O58: 28.64321608 | P58: 75.51128395 | Q58: 58 | S58: 28.64321608 | T58: 52.80550368
A59: 59 | C59: 29.14572864 | D59: 336.4489213 | E59: 59 | G59: 29.14572864 | H59: 244.4117188 | I59: 59 | K59: 29.14572864 | L59: 134.2431568 | M59: 59 | O59: 29.14572864 | P59: 76.65562737 | Q59: 59 | S59: 29.14572864 | T59: 53.64362504
A60: 60 | C60: 29.64824121 | D60: 338.75856 | E60: 60 | G60: 29.64824121 | H60: 246.7781704 | I60: 60 | K60: 29.64824121 | L60: 135.998462 | M60: 60 | O60: 29.64824121 | P60: 77.79460939 | Q60: 60 | S60: 29.64824121 | T60: 54.47899656
A61: 61 | C61: 30.15075377 | D61: 341.0215544 | E61: 61 | G61: 30.15075377 | H61: 249.1097112 | I61: 61 | K61: 30.15075377 | L61: 137.739449 | M61: 61 | O61: 30.15075377 | P61: 78.9282676 | Q61: 61 | S61: 30.15075377 | T61: 55.31163175
A62: 62 | C62: 30.65326633 | D62: 343.2393033 | E62: 62 | G62: 30.65326633 | H62: 251.4071079 | I62: 62 | K62: 30.65326633 | L62: 139.4662926 | M62: 62 | O62: 30.65326633 | P62: 80.05663925 | Q62: 62 | S62: 30.65326633 | T62: 56.14154403
A63: 63 | C63: 31.15577889 | D63: 345.4131504 | E63: 63 | G63: 31.15577889 | H63: 253.6711053 | I63: 63 | K63: 31.15577889 | L63: 141.1791642 | M63: 63 | O63: 31.15577889 | P63: 81.17976123 | Q63: 63 | S63: 31.15577889 | T63: 56.96874673
A64: 64 | C64: 31.65829146 | D64: 347.5443864 | E64: 64 | G64: 31.65829146 | H64: 255.9024262 | I64: 64 | K64: 31.65829146 | L64: 142.8782328 | M64: 64 | O64: 31.65829146 | P64: 82.29767008 | Q64: 64 | S64: 31.65829146 | T64: 57.79325311
A65: 65 | C65: =0+(A65-1)*0.5025125628 -> 32.16080402 | D65: =562.867405963051*C65/(1.25277403798863*(1+1/0.0682290748499779)+C65) -> 349.634252 | E65: 65 | G65: =0+(E65-1)*0.5025125628 -> 32.16080402 | H65: =562.867405963051*G65/(1.25277403798863*(1+2/0.0682290748499779)+G65) -> 258.1017732 | I65: 65 | K65: =0+(I65-1)*0.5025125628 -> 32.16080402 | L65: =562.867405963051*K65/(1.25277403798863*(1+5/0.0682290748499779)+K65) -> 144.5636645 | M65: 65 | O65: =0+(M65-1)*0.5025125628 -> 32.16080402 | P65: =562.867405963051*O65/(1.25277403798863*(1+10/0.0682290748499779)+O65) -> 83.41040203 | Q65: 65 | S65: =0+(Q65-1)*0.5025125628 -> 32.16080402 | T65: =562.867405963051*S65/(1.25277403798863*(1+15/0.0682290748499779)+S65) -> 58.61507632
A66: 66 | C66: 32.66331658 | D66: 351.6839402 | E66: 66 | G66: 32.66331658 | H66: 260.2698285 | I66: 66 | K66: 32.66331658 | L66: 146.2356229 | M66: 66 | O66: 32.66331658 | P66: 84.51799295 | Q66: 66 | S66: 32.66331658 | T66: 59.43422945
A67: 67 | C67: 33.16582914 | D67: 353.6945987 | E67: 67 | G67: 33.16582914 | H67: 262.4072553 | I67: 67 | K67: 33.16582914 | L67: 147.8942689 | M67: 67 | O67: 33.16582914 | P67: 85.62047838 | Q67: 67 | S67: 33.16582914 | T67: 60.25072548
A68: 68 | C68: 33.66834171 | D68: 355.6673316 | E68: 68 | G68: 33.66834171 | H68: 264.514698 | I68: 68 | K68: 33.66834171 | L68: 149.5397609 | M68: 68 | O68: 33.66834171 | P68: 86.71789354 | Q68: 68 | S68: 33.66834171 | T68: 61.06457731
A69: 69 | C69: 34.17085427 | D69: 357.6032021 | E69: 69 | G69: 34.17085427 | H69: 266.5927833 | I69: 69 | K69: 34.17085427 | L69: 151.1722546 | M69: 69 | O69: 34.17085427 | P69: 87.81027334 | Q69: 69 | S69: 34.17085427 | T69: 61.87579779
A70: 70 | C70: 34.67336683 | D70: 359.5032337 | E70: 70 | G70: 34.67336683 | H70: 268.6421202 | I70: 70 | K70: 34.67336683 | L70: 152.7919036 | M70: 70 | O70: 34.67336683 | P70: 88.89765235 | Q70: 70 | S70: 34.67336683 | T70: 62.68439964
A71: 71 | C71: 35.1758794 | D71: 361.3684126 | E71: 71 | G71: 35.1758794 | H71: 270.6633013 | I71: 71 | K71: 35.1758794 | L71: 154.3988588 | M71: 71 | O71: 35.1758794 | P71: 89.98006482 | Q71: 71 | S71: 35.1758794 | T71: 63.49039552
A72: 72 | C72: 35.67839196 | D72: 363.199689 | E72: 72 | G72: 35.67839196 | H72: 272.6569028 | I72: 72 | K72: 35.67839196 | L72: 155.9932689 | M72: 72 | O72: 35.67839196 | P72: 91.05754472 | Q72: 72 | S72: 35.67839196 | T72: 64.29379802
A73: 73 | C73: 36.18090452 | D73: 364.9979789 | E73: 73 | G73: 36.18090452 | H73: 274.6234855 | I73: 73 | K73: 36.18090452 | L73: 157.5752802 | M73: 73 | O73: 36.18090452 | P73: 92.13012567 | Q73: 73 | S73: 36.18090452 | T73: 65.09461963
A74: 74 | C74: 36.68341708 | D74: 366.7641657 | E74: 74 | G74: 36.68341708 | H74: 276.5635948 | I74: 74 | K74: 36.68341708 | L74: 159.1450367 | M74: 74 | O74: 36.68341708 | P74: 93.19784102 | Q74: 74 | S74: 36.68341708 | T74: 65.89287276
A75: 75 | C75: 37.18592965 | D75: 368.4991014 | E75: 75 | G75: 37.18592965 | H75: 278.4777619 | I75: 75 | K75: 37.18592965 | L75: 160.7026804 | M75: 75 | O75: 37.18592965 | P75: 94.26072379 | Q75: 75 | S75: 37.18592965 | T75: 66.68856975
A76: 76 | C76: 37.68844221 | D76: 370.2036082 | E76: 76 | G76: 37.68844221 | H76: 280.3665034 | I76: 76 | K76: 37.68844221 | L76: 162.2483508 | M76: 76 | O76: 37.68844221 | P76: 95.31880672 | Q76: 76 | S76: 37.68844221 | T76: 67.48172287
A77: 77 | C77: 38.19095477 | D77: 371.8784796 | E77: 77 | G77: 38.19095477 | H77: 282.2303228 | I77: 77 | K77: 38.19095477 | L77: 163.7821856 | M77: 77 | O77: 38.19095477 | P77: 96.37212226 | Q77: 77 | S77: 38.19095477 | T77: 68.27234428
A78: 78 | C78: 38.69346734 | D78: 373.5244819 | E78: 78 | G78: 38.69346734 | H78: 284.06971 | I78: 78 | K78: 38.69346734 | L78: 165.3043201 | M78: 78 | O78: 38.69346734 | P78: 97.42070255 | Q78: 78 | S78: 38.69346734 | T78: 69.0604461
A79: 79 | C79: 39.1959799 | D79: 375.1423551 | E79: 79 | G79: 39.1959799 | H79: 285.8851423 | I79: 79 | K79: 39.1959799 | L79: 166.8148876 | M79: 79 | O79: 39.1959799 | P79: 98.46457944 | Q79: 79 | S79: 39.1959799 | T79: 69.84604035
A80: 80 | C80: 39.69849246 | D80: 376.7328141 | E80: 80 | G80: 39.69849246 | H80: 287.6770847 | I80: 80 | K80: 39.69849246 | L80: 168.3140197 | M80: 80 | O80: 39.69849246 | P80: 99.50378453 | Q80: 80 | S80: 39.69849246 | T80: 70.62913897
A81: 81 | C81: 40.20100502 | D81: 378.2965499 | E81: 81 | G81: 40.20100502 | H81: 289.4459901 | I81: 81 | K81: 40.20100502 | L81: 169.8018455 | M81: 81 | O81: 40.20100502 | P81: 100.5383491 | Q81: 81 | S81: 40.20100502 | T81: 71.40975384
A82: 82 | C82: 40.70351759 | D82: 379.8342304 | E82: 82 | G82: 40.70351759 | H82: 291.1922999 | I82: 82 | K82: 40.70351759 | L82: 171.2784925 | M82: 82 | O82: 40.70351759 | P82: 101.5683041 | Q82: 82 | S82: 40.70351759 | T82: 72.18789676
A83: 83 | C83: 41.20603015 | D83: 381.3465015 | E83: 83 | G83: 41.20603015 | H83: 292.9164443 | I83: 83 | K83: 41.20603015 | L83: 172.7440864 | M83: 83 | O83: 41.20603015 | P83: 102.5936804 | Q83: 83 | S83: 41.20603015 | T83: 72.96357945
A84: 84 | C84: 41.70854271 | D84: 382.8339876 | E84: 84 | G84: 41.70854271 | H84: 294.6188427 | I84: 84 | K84: 41.70854271 | L84: 174.1987506 | M84: 84 | O84: 41.70854271 | P84: 103.6145084 | Q84: 84 | S84: 41.70854271 | T84: 73.73681357
A85: 85 | C85: 42.21105528 | D85: 384.2972933 | E85: 85 | G85: 42.21105528 | H85: 296.2999039 | I85: 85 | K85: 42.21105528 | L85: 175.642607 | M85: 85 | O85: 42.21105528 | P85: 104.6308182 | Q85: 85 | S85: 42.21105528 | T85: 74.50761067
A86: 86 | C86: 42.71356784 | D86: 385.7370034 | E86: 86 | G86: 42.71356784 | H86: 297.9600266 | I86: 86 | K86: 42.71356784 | L86: 177.0757756 | M86: 86 | O86: 42.71356784 | P86: 105.6426399 | Q86: 86 | S86: 42.71356784 | T86: 75.27598228
A87: 87 | C87: 43.2160804 | D87: 387.1536841 | E87: 87 | G87: 43.2160804 | H87: 299.5995995 | I87: 87 | K87: 43.2160804 | L87: 178.4983746 | M87: 87 | O87: 43.2160804 | P87: 106.6500031 | Q87: 87 | S87: 43.2160804 | T87: 76.04193982
A88: 88 | C88: 43.71859296 | D88: 388.5478834 | E88: 88 | G88: 43.71859296 | H88: 301.2190019 | I88: 88 | K88: 43.71859296 | L88: 179.9105206 | M88: 88 | O88: 43.71859296 | P88: 107.6529371 | Q88: 88 | S88: 43.71859296 | T88: 76.80549464
A89: 89 | C89: 44.22110553 | D89: 389.9201324 | E89: 89 | G89: 44.22110553 | H89: 302.8186036 | I89: 89 | K89: 44.22110553 | L89: 181.3123283 | M89: 89 | O89: 44.22110553 | P89: 108.6514712 | Q89: 89 | S89: 44.22110553 | T89: 77.56665804
A90: 90 | C90: 44.72361809 | D90: 391.2709453 | E90: 90 | G90: 44.72361809 | H90: 304.3987657 | I90: 90 | K90: 44.72361809 | L90: 182.7039109 | M90: 90 | O90: 44.72361809 | P90: 109.6456343 | Q90: 90 | S90: 44.72361809 | T90: 78.32544124
A91: 91 | C91: 45.22613065 | D91: 392.6008206 | E91: 91 | G91: 45.22613065 | H91: 305.9598404 | I91: 91 | K91: 45.22613065 | L91: 184.0853798 | M91: 91 | O91: 45.22613065 | P91: 110.6354548 | Q91: 91 | S91: 45.22613065 | T91: 79.08185537
A92: 92 | C92: 45.72864321 | D92: 393.9102413 | E92: 92 | G92: 45.72864321 | H92: 307.5021714 | I92: 92 | K92: 45.72864321 | L92: 185.4568448 | M92: 92 | O92: 45.72864321 | P92: 111.6209614 | Q92: 92 | S92: 45.72864321 | T92: 79.83591152
A93: 93 | C93: 46.23115578 | D93: 395.1996758 | E93: 93 | G93: 46.23115578 | H93: 309.0260943 | I93: 93 | K93: 46.23115578 | L93: 186.8184142 | M93: 93 | O93: 46.23115578 | P93: 112.602182 | Q93: 93 | S93: 46.23115578 | T93: 80.5876207
A94: 94 | C94: 46.73366834 | D94: 396.469578 | E94: 94 | G94: 46.73366834 | H94: 310.5319367 | I94: 94 | K94: 46.73366834 | L94: 188.1701949 | M94: 94 | O94: 46.73366834 | P94: 113.5791446 | Q94: 94 | S94: 46.73366834 | T94: 81.33699385
A95: 95 | C95: 47.2361809 | D95: 397.7203886 | E95: 95 | G95: 47.2361809 | H95: 312.0200185 | I95: 95 | K95: 47.2361809 | L95: 189.5122918 | M95: 95 | O95: 47.2361809 | P95: 114.5518769 | Q95: 95 | S95: 47.2361809 | T95: 82.08404184
A96: 96 | C96: 47.73869347 | D96: 398.9525349 | E96: 96 | G96: 47.73869347 | H96: 313.490652 | I96: 96 | K96: 47.73869347 | L96: 190.8448088 | M96: 96 | O96: 47.73869347 | P96: 115.5204062 | Q96: 96 | S96: 47.73869347 | T96: 82.82877547
A97: 97 | C97: =0+(A97-1)*0.5025125628 -> 48.24120603 | D97: =562.867405963051*C97/(1.25277403798863*(1+1/0.0682290748499779)+C97) -> 400.1664314 | E97: 97 | G97: =0+(E97-1)*0.5025125628 -> 48.24120603 | H97: =562.867405963051*G97/(1.25277403798863*(1+2/0.0682290748499779)+G97) -> 314.9441425 | I97: 97 | K97: =0+(I97-1)*0.5025125628 -> 48.24120603 | L97: =562.867405963051*K97/(1.25277403798863*(1+5/0.0682290748499779)+K97) -> 192.167848 | M97: 97 | O97: =0+(M97-1)*0.5025125628 -> 48.24120603 | P97: =562.867405963051*O97/(1.25277403798863*(1+10/0.0682290748499779)+O97) -> 116.4847598 | Q97: 97 | S97: =0+(Q97-1)*0.5025125628 -> 48.24120603 | T97: =562.867405963051*S97/(1.25277403798863*(1+15/0.0682290748499779)+S97) -> 83.57120549
A98: 98 | C98: 48.74371859 | D98: 401.3624808 | E98: 98 | G98: 48.74371859 | H98: 316.3807877 | I98: 98 | K98: 48.74371859 | L98: 193.4815102 | M98: 98 | O98: 48.74371859 | P98: 117.4449646 | Q98: 98 | S98: 48.74371859 | T98: 84.31134256
A99: 99 | C99: 49.24623115 | D99: 402.5410736 | E99: 99 | G99: 49.24623115 | H99: 317.800879 | I99: 99 | K99: 49.24623115 | L99: 194.7858947 | M99: 99 | O99: 49.24623115 | P99: 118.4010473 | Q99: 99 | S99: 49.24623115 | T99: 85.04919729
A100: 100 | C100: 49.74874372 | D100: 403.7025893 | E100: 100 | G100: 49.74874372 | H100: 319.2047008 | I100: 100 | K100: 49.74874372 | L100: 196.0810995 | M100: 100 | O100: 49.74874372 | P100: 119.3530344 | Q100: 100 | S100: 49.74874372 | T100: 85.78478022
A101: 101 | C101: 50.25125628 | D101: 404.8473965 | E101: 101 | G101: 50.25125628 | H101: 320.5925311 | I101: 101 | K101: 50.25125628 | L101: 197.3672211 | M101: 101 | O101: 50.25125628 | P101: 120.3009522 | Q101: 101 | S101: 50.25125628 | T101: 86.51810183
A102: 102 | C102: 50.75376884 | D102: 405.9758529 | E102: 102 | G102: 50.75376884 | H102: 321.9646416 | I102: 102 | K102: 50.75376884 | L102: 198.6443548 | M102: 102 | O102: 50.75376884 | P102: 121.2448267 | Q102: 102 | S102: 50.75376884 | T102: 87.24917252
A103: 103 | C103: 51.25628141 | D103: 407.0883066 | E103: 103 | G103: 51.25628141 | H103: 323.3212978 | I103: 103 | K103: 51.25628141 | L103: 199.9125944 | M103: 103 | O103: 51.25628141 | P103: 122.1846836 | Q103: 103 | S103: 51.25628141 | T103: 87.97800266
A104: 104 | C104: 51.75879397 | D104: 408.1850954 | E104: 104 | G104: 51.75879397 | H104: 324.6627595 | I104: 104 | K104: 51.75879397 | L104: 201.1720325 | M104: 104 | O104: 51.75879397 | P104: 123.1205487 | Q104: 104 | S104: 51.75879397 | T104: 88.70460252
A105: 105 | C105: 52.26130653 | D105: 409.2665479 | E105: 105 | G105: 52.26130653 | H105: 325.9892805 | I105: 105 | K105: 52.26130653 | L105: 202.4227605 | M105: 105 | O105: 52.26130653 | P105: 124.0524473 | Q105: 105 | S105: 52.26130653 | T105: 89.42898232
A106: 106 | C106: 52.76381909 | D106: 410.3329836 | E106: 106 | G106: 52.76381909 | H106: 327.3011089 | I106: 106 | K106: 52.76381909 | L106: 203.6648683 | M106: 106 | O106: 52.76381909 | P106: 124.9804045 | Q106: 106 | S106: 52.76381909 | T106: 90.15115222
A107: 107 | C107: 53.26633166 | D107: 411.384713 | E107: 107 | G107: 53.26633166 | H107: 328.5984875 | I107: 107 | K107: 53.26633166 | L107: 204.8984448 | M107: 107 | O107: 53.26633166 | P107: 125.9044453 | Q107: 107 | S107: 53.26633166 | T107: 90.87112232
A108: 108 | C108: 53.76884422 | D108: 412.4220384 | E108: 108 | G108: 53.76884422 | H108: 329.8816539 | I108: 108 | K108: 53.76884422 | L108: 206.1235776 | M108: 108 | O108: 53.76884422 | P108: 126.8245944 | Q108: 108 | S108: 53.76884422 | T108: 91.58890265
A109: 109 | C109: 54.27135678 | D109: 413.4452536 | E109: 109 | G109: 54.27135678 | H109: 331.1508401 | I109: 109 | K109: 54.27135678 | L109: 207.3403531 | M109: 109 | O109: 54.27135678 | P109: 127.7408765 | Q109: 109 | S109: 54.27135678 | T109: 92.3045032
A110: 110 | C110: 54.77386935 | D110: 414.4546445 | E110: 110 | G110: 54.77386935 | H110: 332.4062736 | I110: 110 | K110: 54.77386935 | L110: 208.5488564 | M110: 110 | O110: 54.77386935 | P110: 128.6533157 | Q110: 110 | S110: 54.77386935 | T110: 93.01793387
A111: 111 | C111: 55.27638191 | D111: 415.4504895 | E111: 111 | G111: 55.27638191 | H111: 333.6481766 | I111: 111 | K111: 55.27638191 | L111: 209.7491718 | M111: 111 | O111: 55.27638191 | P111: 129.5619362 | Q111: 111 | S111: 55.27638191 | T111: 93.72920452
A112: 112 | C112: 55.77889447 | D112: 416.4330594 | E112: 112 | G112: 55.77889447 | H112: 334.8767666 | I112: 112 | K112: 55.77889447 | L112: 210.941382 | M112: 112 | O112: 55.77889447 | P112: 130.466762 | Q112: 112 | S112: 55.77889447 | T112: 94.43832495
A113: 113 | C113: 56.28140703 | D113: 417.4026178 | E113: 113 | G113: 56.28140703 | H113: 336.0922566 | I113: 113 | K113: 56.28140703 | L113: 212.125569 | M113: 113 | O113: 56.28140703 | P113: 131.3678168 | Q113: 113 | S113: 56.28140703 | T113: 95.14530488
A114: 114 | C114: 56.7839196 | D114: 418.3594216 | E114: 114 | G114: 56.7839196 | H114: 337.294855 | I114: 114 | K114: 56.7839196 | L114: 213.3018134 | M114: 114 | O114: 56.7839196 | P114: 132.2651241 | Q114: 114 | S114: 56.7839196 | T114: 95.850154
A115: 115 | C115: 57.28643216 | D115: 419.3037208 | E115: 115 | G115: 57.28643216 | H115: 338.4847659 | I115: 115 | K115: 57.28643216 | L115: 214.4701949 | M115: 115 | O115: 57.28643216 | P115: 133.1587072 | Q115: 115 | S115: 57.28643216 | T115: 96.55288193
A116: 116 | C116: 57.78894472 | D116: 420.2357589 | E116: 116 | G116: 57.78894472 | H116: 339.6621889 | I116: 116 | K116: 57.78894472 | L116: 215.6307921 | M116: 116 | O116: 57.78894472 | P116: 134.0485892 | Q116: 116 | S116: 57.78894472 | T116: 97.25349822
A117: 117 | C117: 58.29145728 | D117: 421.1557732 | E117: 117 | G117: 58.29145728 | H117: 340.8273196 | I117: 117 | K117: 58.29145728 | L117: 216.7836825 | M117: 117 | O117: 58.29145728 | P117: 134.9347932 | Q117: 117 | S117: 58.29145728 | T117: 97.95201239
A118: 118 | C118: 58.79396985 | D118: 422.0639948 | E118: 118 | G118: 58.79396985 | H118: 341.9803495 | I118: 118 | K118: 58.79396985 | L118: 217.9289426 | M118: 118 | O118: 58.79396985 | P118: 135.8173419 | Q118: 118 | S118: 58.79396985 | T118: 98.64843387
A119: 119 | C119: 59.29648241 | D119: 422.9606491 | E119: 119 | G119: 59.29648241 | H119: 343.1214662 | I119: 119 | K119: 59.29648241 | L119: 219.0666479 | M119: 119 | O119: 59.29648241 | P119: 136.6962577 | Q119: 119 | S119: 59.29648241 | T119: 99.34277206
A120: 120 | C120: 59.79899497 | D120: 423.8459556 | E120: 120 | G120: 59.79899497 | H120: 344.2508533 | I120: 120 | K120: 59.79899497 | L120: 220.1968729 | M120: 120 | O120: 59.79899497 | P120: 137.5715632 | Q120: 120 | S120: 59.79899497 | T120: 100.0350363
A121: 121 | C121: 60.30150754 | D121: 424.7201285 | E121: 121 | G121: 60.30150754 | H121: 345.3686908 | I121: 121 | K121: 60.30150754 | L121: 221.3196911 | M121: 121 | O121: 60.30150754 | P121: 138.4432805 | Q121: 121 | S121: 60.30150754 | T121: 100.7252358
A122: 122 | C122: 60.8040201 | D122: 425.5833763 | E122: 122 | G122: 60.8040201 | H122: 346.4751549 | I122: 122 | K122: 60.8040201 | L122: 222.4351752 | M122: 122 | O122: 60.8040201 | P122: 139.3114317 | Q122: 122 | S122: 60.8040201 | T122: 101.4133799
A123: 123 | C123: 61.30653266 | D123: 426.4359028 | E123: 123 | G123: 61.30653266 | H123: 347.5704183 | I123: 123 | K123: 61.30653266 | L123: 223.5433968 | M123: 123 | O123: 61.30653266 | P123: 140.1760385 | Q123: 123 | S123: 61.30653266 | T123: 102.0994777
A124: 124 | C124: 61.80904522 | D124: 427.2779063 | E124: 124 | G124: 61.80904522 | H124: 348.6546502 | I124: 124 | K124: 61.80904522 | L124: 224.6444264 | M124: 124 | O124: 61.80904522 | P124: 141.0371227 | Q124: 124 | S124: 61.80904522 | T124: 102.7835384
A125: 125 | C125: 62.31155779 | D125: 428.1095804 | E125: 125 | G125: 62.31155779 | H125: 349.7280165 | I125: 125 | K125: 62.31155779 | L125: 225.738334 | M125: 125 | O125: 62.31155779 | P125: 141.8947057 | Q125: 125 | S125: 62.31155779 | T125: 103.4655709
A126: 126 | C126: 62.81407035 | D126: 428.9311142 | E126: 126 | G126: 62.81407035 | H126: 350.7906798 | I126: 126 | K126: 62.81407035 | L126: 226.8251885 | M126: 126 | O126: 62.81407035 | P126: 142.7488088 | Q126: 126 | S126: 62.81407035 | T126: 104.1455843
A127: 127 | C127: 63.31658291 | D127: 429.742692 | E127: 127 | G127: 63.31658291 | H127: 351.8427992 | I127: 127 | K127: 63.31658291 | L127: 227.9050577 | M127: 127 | O127: 63.31658291 | P127: 143.5994532 | Q127: 127 | S127: 63.31658291 | T127: 104.8235875
A128: 128 | C128: 63.81909548 | D128: 430.5444935 | E128: 128 | G128: 63.81909548 | H128: 352.8845309 | I128: 128 | K128: 63.81909548 | L128: 228.9780088 | M128: 128 | O128: 63.81909548 | P128: 144.4466599 | Q128: 128 | S128: 63.81909548 | T128: 105.4995895
A129: 129 | C129: =0+(A129-1)*0.5025125628 -> 64.32160804 | D129: =562.867405963051*C129/(1.25277403798863*(1+1/0.0682290748499779)+C129) -> 431.3366945 | E129: 129 | G129: =0+(E129-1)*0.5025125628 -> 64.32160804 | H129: =562.867405963051*G129/(1.25277403798863*(1+2/0.0682290748499779)+G129) -> 353.9160281 | I129: 129 | K129: =0+(I129-1)*0.5025125628 -> 64.32160804 | L129: =562.867405963051*K129/(1.25277403798863*(1+5/0.0682290748499779)+K129) -> 230.0441081 | M129: 129 | O129: =0+(M129-1)*0.5025125628 -> 64.32160804 | P129: =562.867405963051*O129/(1.25277403798863*(1+10/0.0682290748499779)+O129) -> 145.2904495 | Q129: 129 | S129: =0+(Q129-1)*0.5025125628 -> 64.32160804 | T129: =562.867405963051*S129/(1.25277403798863*(1+15/0.0682290748499779)+S129) -> 106.1735991
A130: 130 | C130: 64.8241206 | D130: 432.1194664 | E130: 130 | G130: 64.8241206 | H130: 354.9374408 | I130: 130 | K130: 64.8241206 | L130: 231.1034211 | M130: 130 | O130: 64.8241206 | P130: 146.1308429 | Q130: 130 | S130: 64.8241206 | T130: 106.8456251
A131: 131 | C131: 65.32663316 | D131: 432.8929764 | E131: 131 | G131: 65.32663316 | H131: 355.9489161 | I131: 131 | K131: 65.32663316 | L131: 232.1560123 | M131: 131 | O131: 65.32663316 | P131: 146.9678603 | Q131: 131 | S131: 65.32663316 | T131: 107.5156762
A132: 132 | C132: 65.82914573 | D132: 433.657388 | E132: 132 | G132: 65.82914573 | H132: 356.9505985 | I132: 132 | K132: 65.82914573 | L132: 233.2019454 | M132: 132 | O132: 65.82914573 | P132: 147.8015222 | Q132: 132 | S132: 65.82914573 | T132: 108.1837611
A133: 133 | C133: 66.33165829 | D133: 434.4128608 | E133: 133 | G133: 66.33165829 | H133: 357.9426293 | I133: 133 | K133: 66.33165829 | L133: 234.2412835 | M133: 133 | O133: 66.33165829 | P133: 148.6318487 | Q133: 133 | S133: 66.33165829 | T133: 108.8498885
A134: 134 | C134: 66.83417085 | D134: 435.1595506 | E134: 134 | G134: 66.83417085 | H134: 358.9251476 | I134: 134 | K134: 66.83417085 | L134: 235.2740888 | M134: 134 | O134: 66.83417085 | P134: 149.4588597 | Q134: 134 | S134: 66.83417085 | T134: 109.5140669
A135: 135 | C135: 67.33668342 | D135: 435.8976099 | E135: 135 | G135: 67.33668342 | H135: 359.8982893 | I135: 135 | K135: 67.33668342 | L135: 236.3004226 | M135: 135 | O135: 67.33668342 | P135: 150.2825751 | Q135: 135 | S135: 67.33668342 | T135: 110.176305
A136: 136 | C136: 67.83919598 | D136: 436.6271872 | E136: 136 | G136: 67.83919598 | H136: 360.8621882 | I136: 136 | K136: 67.83919598 | L136: 237.3203456 | M136: 136 | O136: 67.83919598 | P136: 151.1030146 | Q136: 136 | S136: 67.83919598 | T136: 110.8366111
A137: 137 | C137: 68.34170854 | D137: 437.348428 | E137: 137 | G137: 68.34170854 | H137: 361.8169752 | I137: 137 | K137: 68.34170854 | L137: 238.3339176 | M137: 137 | O137: 68.34170854 | P137: 151.9201975 | Q137: 137 | S137: 68.34170854 | T137: 111.4949937
A138: 138 | C138: 68.8442211 | D138: 438.0614744 | E138: 138 | G138: 68.8442211 | H138: 362.762779 | I138: 138 | K138: 68.8442211 | L138: 239.3411978 | M138: 138 | O138: 68.8442211 | P138: 152.7341433 | Q138: 138 | S138: 68.8442211 | T138: 112.1514613
A139: 139 | C139: 69.34673367 | D139: 438.7664652 | E139: 139 | G139: 69.34673367 | H139: 363.6997258 | I139: 139 | K139: 69.34673367 | L139: 240.3422447 | M139: 139 | O139: 69.34673367 | P139: 153.5448712 | Q139: 139 | S139: 69.34673367 | T139: 112.8060222
A140: 140 | C140: 69.84924623 | D140: 439.4635362 | E140: 140 | G140: 69.84924623 | H140: 364.6279394 | I140: 140 | K140: 69.84924623 | L140: 241.3371158 | M140: 140 | O140: 69.84924623 | P140: 154.3524002 | Q140: 140 | S140: 69.84924623 | T140: 113.4586846
A141: 141 | C141: 70.35175879 | D141: 440.1528201 | E141: 141 | G141: 70.35175879 | H141: 365.5475412 | I141: 141 | K141: 70.35175879 | L141: 242.3258681 | M141: 141 | O141: 70.35175879 | P141: 155.1567493 | Q141: 141 | S141: 70.35175879 | T141: 114.1094568
A142: 142 | C142: 70.85427135 | D142: 440.8344467 | E142: 142 | G142: 70.85427135 | H142: 366.4586507 | I142: 142 | K142: 70.85427135 | L142: 243.308558 | M142: 142 | O142: 70.85427135 | P142: 155.9579371 | Q142: 142 | S142: 70.85427135 | T142: 114.758347
A143: 143 | C143: 71.35678392 | D143: 441.5085428 | E143: 143 | G143: 71.35678392 | H143: 367.361385 | I143: 143 | K143: 71.35678392 | L143: 244.285241 | M143: 143 | O143: 71.35678392 | P143: 156.7559823 | Q143: 143 | S143: 71.35678392 | T143: 115.4053633
A144: 144 | C144: 71.85929648 | D144: 442.1752325 | E144: 144 | G144: 71.85929648 | H144: 368.2558588 | I144: 144 | K144: 71.85929648 | L144: 245.2559721 | M144: 144 | O144: 71.85929648 | P144: 157.5509033 | Q144: 144 | S144: 71.85929648 | T144: 116.050514
A145: 145 | C145: 72.36180904 | D145: 442.8346373 | E145: 145 | G145: 72.36180904 | H145: 369.1421852 | I145: 145 | K145: 72.36180904 | L145: 246.2208054 | M145: 145 | O145: 72.36180904 | P145: 158.3427184 | Q145: 145 | S145: 72.36180904 | T145: 116.6938069
A146: 146 | C146: 72.86432161 | D146: 443.4868759 | E146: 146 | G146: 72.86432161 | H146: 370.020475 | I146: 146 | K146: 72.86432161 | L146: 247.1797945 | M146: 146 | O146: 72.86432161 | P146: 159.1314458 | Q146: 146 | S146: 72.86432161 | T146: 117.3352502
A147: 147 | C147: 73.36683417 | D147: 444.1320645 | E147: 147 | G147: 73.36683417 | H147: 370.8908369 | I147: 147 | K147: 73.36683417 | L147: 248.1329925 | M147: 147 | O147: 73.36683417 | P147: 159.9171035 | Q147: 147 | S147: 73.36683417 | T147: 117.9748518
A148: 148 | C148: 73.86934673 | D148: 444.7703167 | E148: 148 | G148: 73.86934673 | H148: 371.7533779 | I148: 148 | K148: 73.86934673 | L148: 249.0804515 | M148: 148 | O148: 73.86934673 | P148: 160.6997095 | Q148: 148 | S148: 73.86934673 | T148: 118.6126197
A149: 149 | C149: 74.37185929 | D149: 445.4017439 | E149: 149 | G149: 74.37185929 | H149: 372.6082027 | I149: 149 | K149: 74.37185929 | L149: 250.0222233 | M149: 149 | O149: 74.37185929 | P149: 161.4792814 | Q149: 149 | S149: 74.37185929 | T149: 119.2485616
A150: 150 | C150: 74.87437186 | D150: 446.026455 | E150: 150 | G150: 74.87437186 | H150: 373.4554147 | I150: 150 | K150: 74.87437186 | L150: 250.9583589 | M150: 150 | O150: 74.87437186 | P150: 162.2558368 | Q150: 150 | S150: 74.87437186 | T150: 119.8826854
A151: 151 | C151: 75.37688442 | D151: 446.6445564 | E151: 151 | G151: 75.37688442 | H151: 374.2951149 | I151: 151 | K151: 75.37688442 | L151: 251.8889088 | M151: 151 | O151: 75.37688442 | P151: 163.0293933 | Q151: 151 | S151: 75.37688442 | T151: 120.514999
A152: 152 | C152: 75.87939698 | D152: 447.2561527 | E152: 152 | G152: 75.87939698 | H152: 375.1274029 | I152: 152 | K152: 75.87939698 | L152: 252.8139228 | M152: 152 | O152: 75.87939698 | P152: 163.7999682 | Q152: 152 | S152: 75.87939698 | T152: 121.14551
A153: 153 | C153: 76.38190955 | D153: 447.8613458 | E153: 153 | G153: 76.38190955 | H153: 375.9523763 | I153: 153 | K153: 76.38190955 | L153: 253.7334501 | M153: 153 | O153: 76.38190955 | P153: 164.5675787 | Q153: 153 | S153: 76.38190955 | T153: 121.7742261
A154: 154 | C154: 76.88442211 | D154: 448.4602359 | E154: 154 | G154: 76.88442211 | H154: 376.7701312 | I154: 154 | K154: 76.88442211 | L154: 254.6475395 | M154: 154 | O154: 76.88442211 | P154: 165.3322418 | Q154: 154 | S154: 76.88442211 | T154: 122.4011551
A155: 155 | C155: 77.38693467 | D155: 449.0529209 | E155: 155 | G155: 77.38693467 | H155: 377.5807619 | I155: 155 | K155: 77.38693467 | L155: 255.556239 | M155: 155 | O155: 77.38693467 | P155: 166.0939745 | Q155: 155 | S155: 77.38693467 | T155: 123.0263044
A156: 156 | C156: 77.88944723 | D156: 449.6394968 | E156: 156 | G156: 77.88944723 | H156: 378.3843611 | I156: 156 | K156: 77.88944723 | L156: 256.4595962 | M156: 156 | O156: 77.88944723 | P156: 166.8527936 | Q156: 156 | S156: 77.88944723 | T156: 123.6496818
A157: 157 | C157: 78.3919598 | D157: 450.2200575 | E157: 157 | G157: 78.3919598 | H157: 379.1810199 | I157: 157 | K157: 78.3919598 | L157: 257.357658 | M157: 157 | O157: 78.3919598 | P157: 167.6087158 | Q157: 157 | S157: 78.3919598 | T157: 124.2712946
A158: 158 | C158: 78.89447236 | D158: 450.7946951 | E158: 158 | G158: 78.89447236 | H158: 379.9708278 | I158: 158 | K158: 78.89447236 | L158: 258.2504709 | M158: 158 | O158: 78.89447236 | P158: 168.3617577 | Q158: 158 | S158: 78.89447236 | T158: 124.8911504
A159: 159 | C159: 79.39698492 | D159: 451.3634997 | E159: 159 | G159: 79.39698492 | H159: 380.7538728 | I159: 159 | K159: 79.39698492 | L159: 259.1380807 | M159: 159 | O159: 79.39698492 | P159: 169.1119357 | Q159: 159 | S159: 79.39698492 | T159: 125.5092567
A160: 160 | C160: 79.89949749 | D160: 451.9265598 | E160: 160 | G160: 79.89949749 | H160: 381.5302414 | I160: 160 | K160: 79.89949749 | L160: 260.0205328 | M160: 160 | O160: 79.89949749 | P160: 169.859266 | Q160: 160 | S160: 79.89949749 | T160: 126.1256208
A161: 161 | C161: =0+(A161-1)*0.5025125628 -> 80.40201005 | D161: =562.867405963051*C161/(1.25277403798863*(1+1/0.0682290748499779)+C161) -> 452.4839618 | E161: 161 | G161: =0+(E161-1)*0.5025125628 -> 80.40201005 | H161: =562.867405963051*G161/(1.25277403798863*(1+2/0.0682290748499779)+G161) -> 382.3000186 | I161: 161 | K161: =0+(I161-1)*0.5025125628 -> 80.40201005 | L161: =562.867405963051*K161/(1.25277403798863*(1+5/0.0682290748499779)+K161) -> 260.897872 | M161: 161 | O161: =0+(M161-1)*0.5025125628 -> 80.40201005 | P161: =562.867405963051*O161/(1.25277403798863*(1+10/0.0682290748499779)+O161) -> 170.6037649 | Q161: 161 | S161: =0+(Q161-1)*0.5025125628 -> 80.40201005 | T161: =562.867405963051*S161/(1.25277403798863*(1+15/0.0682290748499779)+S161) -> 126.74025
A162: 162 | C162: 80.90452261 | D162: 453.0357908 | E162: 162 | G162: 80.90452261 | H162: 383.0632881 | I162: 162 | K162: 80.90452261 | L162: 261.7701427 | M162: 162 | O162: 80.90452261 | P162: 171.3454485 | Q162: 162 | S162: 80.90452261 | T162: 127.3531517
A163: 163 | C163: 81.40703517 | D163: 453.5821298 | E163: 163 | G163: 81.40703517 | H163: 383.8201319 | I163: 163 | K163: 81.40703517 | L163: 262.6373885 | M163: 163 | O163: 81.40703517 | P163: 172.0843326 | Q163: 163 | S163: 81.40703517 | T163: 127.9643332
A164: 164 | C164: 81.90954774 | D164: 454.1230603 | E164: 164 | G164: 81.90954774 | H164: 384.5706309 | I164: 164 | K164: 81.90954774 | L164: 263.4996529 | M164: 164 | O164: 81.90954774 | P164: 172.8204332 | Q164: 164 | S164: 81.90954774 | T164: 128.5738017
A165: 165 | C165: 82.4120603 | D165: 454.6586623 | E165: 165 | G165: 82.4120603 | H165: 385.3148645 | I165: 165 | K165: 82.4120603 | L165: 264.3569786 | M165: 165 | O165: 82.4120603 | P165: 173.5537658 | Q165: 165 | S165: 82.4120603 | T165: 129.1815644
A166: 166 | C166: 82.91457286 | D166: 455.1890142 | E166: 166 | G166: 82.91457286 | H166: 386.052911 | I166: 166 | K166: 82.91457286 | L166: 265.209408 | M166: 166 | O166: 82.91457286 | P166: 174.2843461 | Q166: 166 | S166: 82.91457286 | T166: 129.7876284
A167: 167 | C167: 83.41708542 | D167: 455.7141926 | E167: 167 | G167: 83.41708542 | H167: 386.784847 | I167: 167 | K167: 83.41708542 | L167: 266.0569828 | M167: 167 | O167: 83.41708542 | P167: 175.0121895 | Q167: 167 | S167: 83.41708542 | T167: 130.3920009
A168: 168 | C168: 83.91959799 | D168: 456.2342731 | E168: 168 | G168: 83.91959799 | H168: 387.5107482 | I168: 168 | K168: 83.91959799 | L168: 266.8997444 | M168: 168 | O168: 83.91959799 | P168: 175.7373115 | Q168: 168 | S168: 83.91959799 | T168: 130.9946889
A169: 169 | C169: 84.42211055 | D169: 456.7493294 | E169: 169 | G169: 84.42211055 | H169: 388.2306889 | I169: 169 | K169: 84.42211055 | L169: 267.7377336 | M169: 169 | O169: 84.42211055 | P169: 176.4597271 | Q169: 169 | S169: 84.42211055 | T169: 131.5956994
A170: 170 | C170: 84.92462311 | D170: 457.259434 | E170: 170 | G170: 84.92462311 | H170: 388.9447423 | I170: 170 | K170: 84.92462311 | L170: 268.570991 | M170: 170 | O170: 84.92462311 | P170: 177.1794516 | Q170: 170 | S170: 84.92462311 | T170: 132.1950395
A171: 171 | C171: 85.42713568 | D171: 457.764658 | E171: 171 | G171: 85.42713568 | H171: 389.6529802 | I171: 171 | K171: 85.42713568 | L171: 269.3995565 | M171: 171 | O171: 85.42713568 | P171: 177.8965 | Q171: 171 | S171: 85.42713568 | T171: 132.7927161
A172: 172 | C172: 85.92964824 | D172: 458.265071 | E172: 172 | G172: 85.92964824 | H172: 390.3554734 | I172: 172 | K172: 85.92964824 | L172: 270.2234695 | M172: 172 | O172: 85.92964824 | P172: 178.6108872 | Q172: 172 | S172: 85.92964824 | T172: 133.388736
A173: 173 | C173: 86.4321608 | D173: 458.7607415 | E173: 173 | G173: 86.4321608 | H173: 391.0522915 | I173: 173 | K173: 86.4321608 | L173: 271.0427693 | M173: 173 | O173: 86.4321608 | P173: 179.3226278 | Q173: 173 | S173: 86.4321608 | T173: 133.9831063
A174: 174 | C174: 86.93467336 | D174: 459.2517366 | E174: 174 | G174: 86.93467336 | H174: 391.743503 | I174: 174 | K174: 86.93467336 | L174: 271.8574943 | M174: 174 | O174: 86.93467336 | P174: 180.0317367 | Q174: 174 | S174: 86.93467336 | T174: 134.5758338
A175: 175 | C175: 87.43718593 | D175: 459.7381221 | E175: 175 | G175: 87.43718593 | H175: 392.4291753 | I175: 175 | K175: 87.43718593 | L175: 272.6676828 | M175: 175 | O175: 87.43718593 | P175: 180.7382284 | Q175: 175 | S175: 87.43718593 | T175: 135.1669251
A176: 176 | C176: 87.93969849 | D176: 460.2199626 | E176: 176 | G176: 87.93969849 | H176: 393.1093747 | I176: 176 | K176: 87.93969849 | L176: 273.4733727 | M176: 176 | O176: 87.93969849 | P176: 181.4421174 | Q176: 176 | S176: 87.93969849 | T176: 135.7563872
A177: 177 | C177: 88.44221105 | D177: 460.6973215 | E177: 177 | G177: 88.44221105 | H177: 393.7841666 | I177: 177 | K177: 88.44221105 | L177: 274.2746012 | M177: 177 | O177: 88.44221105 | P177: 182.143418 | Q177: 177 | S177: 88.44221105 | T177: 136.3442267
A178: 178 | C178: 88.94472362 | D178: 461.1702611 | E178: 178 | G178: 88.94472362 | H178: 394.453615 | I178: 178 | K178: 88.94472362 | L178: 275.0714053 | M178: 178 | O178: 88.94472362 | P178: 182.8421444 | Q178: 178 | S178: 88.94472362 | T178: 136.9304503
A179: 179 | C179: 89.44723618 | D179: 461.6388425 | E179: 179 | G179: 89.44723618 | H179: 395.1177833 | I179: 179 | K179: 89.44723618 | L179: 275.8638216 | M179: 179 | O179: 89.44723618 | P179: 183.5383109 | Q179: 179 | S179: 89.44723618 | T179: 137.5150647
A180: 180 | C180: 89.94974874 | D180: 462.1031255 | E180: 180 | G180: 89.94974874 | H180: 395.7767336 | I180: 180 | K180: 89.94974874 | L180: 276.6518862 | M180: 180 | O180: 89.94974874 | P180: 184.2319314 | Q180: 180 | S180: 89.94974874 | T180: 138.0980765
A181: 181 | C181: 90.4522613 | D181: 462.5631692 | E181: 181 | G181: 90.4522613 | H181: 396.4305273 | I181: 181 | K181: 90.4522613 | L181: 277.4356349 | M181: 181 | O181: 90.4522613 | P181: 184.9230199 | Q181: 181 | S181: 90.4522613 | T181: 138.6794922
A182: 182 | C182: 90.95477387 | D182: 463.0190313 | E182: 182 | G182: 90.95477387 | H182: 397.0792245 | I182: 182 | K182: 90.95477387 | L182: 278.215103 | M182: 182 | O182: 90.95477387 | P182: 185.6115903 | Q182: 182 | S182: 90.95477387 | T182: 139.2593185
A183: 183 | C183: 91.45728643 | D183: 463.4707685 | E183: 183 | G183: 91.45728643 | H183: 397.7228847 | I183: 183 | K183: 91.45728643 | L183: 278.9903255 | M183: 183 | O183: 91.45728643 | P183: 186.2976562 | Q183: 183 | S183: 91.45728643 | T183: 139.8375617
A184: 184 | C184: 91.95979899 | D184: 463.9184365 | E184: 184 | G184: 91.95979899 | H184: 398.3615663 | I184: 184 | K184: 91.95979899 | L184: 279.7613369 | M184: 184 | O184: 91.95979899 | P184: 186.9812313 | Q184: 184 | S184: 91.95979899 | T184: 140.4142285
A185: 185 | C185: 92.46231156 | D185: 464.3620902 | E185: 185 | G185: 92.46231156 | H185: 398.9953269 | I185: 185 | K185: 92.46231156 | L185: 280.5281716 | M185: 185 | O185: 92.46231156 | P185: 187.6623292 | Q185: 185 | S185: 92.46231156 | T185: 140.9893252
A186: 186 | C186: 92.96482412 | D186: 464.8017833 | E186: 186 | G186: 92.96482412 | H186: 399.624223 | I186: 186 | K186: 92.96482412 | L186: 281.2908633 | M186: 186 | O186: 92.96482412 | P186: 188.3409633 | Q186: 186 | S186: 92.96482412 | T186: 141.5628583
A187: 187 | C187: 93.46733668 | D187: 465.2375686 | E187: 187 | G187: 93.46733668 | H187: 400.2483106 | I187: 187 | K187: 93.46733668 | L187: 282.0494456 | M187: 187 | O187: 93.46733668 | P187: 189.0171469 | Q187: 187 | S187: 93.46733668 | T187: 142.1348341
A188: 188 | C188: 93.96984924 | D188: 465.6694978 | E188: 188 | G188: 93.96984924 | H188: 400.8676444 | I188: 188 | K188: 93.96984924 | L188: 282.8039515 | M188: 188 | O188: 93.96984924 | P188: 189.6908933 | Q188: 188 | S188: 93.96984924 | T188: 142.7052589
A189: 189 | C189: 94.47236181 | D189: 466.0976221 | E189: 189 | G189: 94.47236181 | H189: 401.4822788 | I189: 189 | K189: 94.47236181 | L189: 283.5544138 | M189: 189 | O189: 94.47236181 | P189: 190.3622156 | Q189: 189 | S189: 94.47236181 | T189: 143.274139
A190: 190 | C190: 94.97487437 | D190: 466.5219915 | E190: 190 | G190: 94.97487437 | H190: 402.0922668 | I190: 190 | K190: 94.97487437 | L190: 284.300865 | M190: 190 | O190: 94.97487437 | P190: 191.031127 | Q190: 190 | S190: 94.97487437 | T190: 143.8414808
A191: 191 | C191: 95.47738693 | D191: 466.942655 | E191: 191 | G191: 95.47738693 | H191: 402.6976611 | I191: 191 | K191: 95.47738693 | L191: 285.0433371 | M191: 191 | O191: 95.47738693 | P191: 191.6976403 | Q191: 191 | S191: 95.47738693 | T191: 144.4072904
A192: 192 | C192: 95.97989949 | D192: 467.3596611 | E192: 192 | G192: 95.97989949 | H192: 403.2985132 | I192: 192 | K192: 95.97989949 | L192: 285.7818619 | M192: 192 | O192: 95.97989949 | P192: 192.3617684 | Q192: 192 | S192: 95.97989949 | T192: 144.971574
A193: 193 | C193: =0+(A193-1)*0.5025125628 -> 96.48241206 | D193: =562.867405963051*C193/(1.25277403798863*(1+1/0.0682290748499779)+C193) -> 467.7730573 | E193: 193 | G193: =0+(E193-1)*0.5025125628 -> 96.48241206 | H193: =562.867405963051*G193/(1.25277403798863*(1+2/0.0682290748499779)+G193) -> 403.8948743 | I193: 193 | K193: =0+(I193-1)*0.5025125628 -> 96.48241206 | L193: =562.867405963051*K193/(1.25277403798863*(1+5/0.0682290748499779)+K193) -> 286.5164707 | M193: 193 | O193: =0+(M193-1)*0.5025125628 -> 96.48241206 | P193: =562.867405963051*O193/(1.25277403798863*(1+10/0.0682290748499779)+O193) -> 193.0235242 | Q193: 193 | S193: =0+(Q193-1)*0.5025125628 -> 96.48241206 | T193: =562.867405963051*S193/(1.25277403798863*(1+15/0.0682290748499779)+S193) -> 145.5343379
A194: 194 | C194: 96.98492462 | D194: 468.1828902 | E194: 194 | G194: 96.98492462 | H194: 404.4867943 | I194: 194 | K194: 96.98492462 | L194: 287.2471946 | M194: 194 | O194: 96.98492462 | P194: 193.6829203 | Q194: 194 | S194: 96.98492462 | T194: 146.095588
A195: 195 | C195: 97.48743718 | D195: 468.5892058 | E195: 195 | G195: 97.48743718 | H195: 405.0743227 | I195: 195 | K195: 97.48743718 | L195: 287.9740644 | M195: 195 | O195: 97.48743718 | P195: 194.3399692 | Q195: 195 | S195: 97.48743718 | T195: 146.6553307
A196: 196 | C196: 97.98994975 | D196: 468.992049 | E196: 196 | G196: 97.98994975 | H196: 405.6575083 | I196: 196 | K196: 97.98994975 | L196: 288.6971104 | M196: 196 | O196: 97.98994975 | P196: 194.9946836 | Q196: 196 | S196: 97.98994975 | T196: 147.2135718
A197: 197 | C197: 98.49246231 | D197: 469.3914642 | E197: 197 | G197: 98.49246231 | H197: 406.236399 | I197: 197 | K197: 98.49246231 | L197: 289.4163628 | M197: 197 | O197: 98.49246231 | P197: 195.6470759 | Q197: 197 | S197: 98.49246231 | T197: 147.7703174
A198: 198 | C198: 98.99497487 | D198: 469.787495 | E198: 198 | G198: 98.99497487 | H198: 406.811042 | I198: 198 | K198: 98.99497487 | L198: 290.1318513 | M198: 198 | O198: 98.99497487 | P198: 196.2971582 | Q198: 198 | S198: 98.99497487 | T198: 148.3255736
A199: 199 | C199: 99.49748743 | D199: 470.1801842 | E199: 199 | G199: 99.49748743 | H199: 407.381484 | I199: 199 | K199: 99.49748743 | L199: 290.8436054 | M199: 199 | O199: 99.49748743 | P199: 196.944943 | Q199: 199 | S199: 99.49748743 | T199: 148.8793463
A200: 200 | C200: 100 | D200: 470.569574 | E200: 200 | G200: 100 | H200: 407.9477708 | I200: 200 | K200: 100 | L200: 291.5516543 | M200: 200 | O200: 100 | P200: 197.5904424 | Q200: 200 | S200: 100 | T200: 149.4316414
